[Event "GM ZIA Smirity-B 2025"]
[Site "Dhaka"]
[Date "2025.02.18"]
[Round "4.3"]
[White "Kazi, Saiyf"]
[Black "Abdul, Momin"]
[Result "0-1"]
[Annotator "ChessBase"]
[ECO "D02"]
[WhiteElo "1928"]
[BlackElo "1906"]
[PlyCount "134"]
[EventDate "2025.02.17"]
[EventType "swiss"]
[EventCountry "BAN"]
[SourceTitle "playchess.com"]
[Source "ChessBase"]
[SourceQuality "1"]
[TimeControl "5400+30"]

1. d4 {[%emt 0:17:05]} Nf6 {[%emt 0:00:02]} 2. Bf4 {[%emt 0:00:04]} e6 {[%emt 0:00:14]} 3. Nf3 {[%emt 0:00:11]} d5 {[%emt 0:00:11]} 4. e3 {[%emt 0:00:32]} Bd6 {[%emt 0:00:49]} 5. Nbd2 {[%emt 0:01:30]} O-O {[%emt 0:00:33]} 6. Bd3 {[%emt 0:00:14]} Bxf4 {[%emt 0:00:17]} 7. exf4 {[%emt 0:00:08]} Nbd7 {[%emt 0:00:56]} 8. Qe2 {[%emt 0:01:14]} c5 {[%emt 0:00:07]} 9. c3 {[%emt 0:00:07]} Re8 {[%emt 0:01:48]} 10. O-O {[%emt 0:00:49]} b6 {[%emt 0:00:55]} 11. Ne5 {[%emt 0:01:02]} Bb7 {[%emt 0:00:35]} 12. g4 {[%emt 0:02:26]} g6 {[%emt 0:02:29]} 13. Rae1 {[%emt 0:01:37]} Rc8 {[%emt 0:01:23]} 14. a3 {[%emt 0:03:08]} cxd4 {[%emt 0:02:41]} 15. cxd4 {[%emt 0:00:03]} a6 {[%emt 0:00:07]} 16. h4 {[%emt 0:05:28]} Nxe5 {[%emt 0:05:06]} 17. fxe5 {[%emt 0:09:06]} Ne4 {[%emt 1:20:47]} 18. Nf3 {[%emt 0:03:42]} b5 {[%emt 0:00:00]} 19. g5 {[%emt 0:11:09]} Kg7 {[%emt 0:00:00]} 20. Qe3 {[%emt 0:03:45]} Rh8 {[%emt 0:00:00]} 21. Kg2 {[%emt 0:07:14]} h6 {[%emt 0:00:00]} 22. Rh1 {[%emt 0:01:31]} Qe7 {[%emt 0:00:00]} 23. Ng1 {[%emt 0:04:21]} hxg5 {[%emt 0:00:00]} 24. f3 {[%emt 0:01:02]} gxh4 {[%emt 0:00:00]} 25. fxe4 {[%emt 0:00:25]} dxe4 {[%emt 0:00:00]} 26. Bxe4 {[%emt 0:02:10]} Rc2+ {[%emt 0:00:00]} 27. Re2 {[%emt 0:03:45]} Bxe4+ {[%emt 0:00:00]} 28. Qxe4 {[%emt 0:00:02]} Qg5+ {[%emt 0:00:00]} 29. Kf1 {[%emt 0:01:16]} Rc1+ {[%emt 0:00:00]} 30. Re1 {[%emt 0:00:12]} Rxe1+ {[%emt 0:00:00]} 31. Qxe1 {[%emt 0:00:55]} Rc8 {[%emt 0:00:00]} 32. Ne2 {[%emt 0:04:41]} Qf5+ {[%emt 0:00:00]} 33. Qf2 {[%emt 0:01:00]} g5 {[%emt 0:00:00]} 34. Qxf5 {[%emt 0:01:45]} exf5 {[%emt 0:00:00]} 35. Nc3 {[%emt 0:00:05]} a5 {[%emt 0:00:00]} 36. Nxb5 {[%emt 0:04:14]} Rc1+ {[%emt 0:00:00]} 37. Kg2 {[%emt 0:00:13]} Rc2+ {[%emt 0:00:00]} 38. Kh3 {[%emt 0:01:04]} Rxb2 {[%emt 0:00:00]} 39. a4 {[%emt 0:00:51]} Rb3+ {[%emt 0:00:00]} 40. Kg2 {[%emt 0:00:05]} Rb4 {[%emt 0:00:00]} 41. Rd1 {[%emt 0:00:19]} Kf8 {[%emt 0:00:00]} 42. Nd6 {[%emt 0:00:50]} Rb2+ {[%emt 0:00:00]} 43. Kh1 {[%emt 0:00:56]} f4 {[%emt 0:00:00]} 44. Rg1 {[%emt 0:00:50]} f3 {[%emt 0:00:00]} 45. Rxg5 {[%emt 0:01:40]} f2 {[%emt 0:00:00]} 46. Rf5 {[%emt 0:07:08]} Rb1+ {[%emt 0:00:00]} 47. Kg2 {[%emt 0:00:04]} h3+ {[%emt 0:00:00]} 48. Kxf2 {[%emt 0:00:25]} h2 {[%emt 0:00:00]} 49. Rh5 {[%emt 0:00:57]} h1=Q {[%emt 0:00:00]} 50. Rxh1 {[%emt 0:00:33]} Rxh1 {[%emt 0:00:00]} 51. Nb7 {[%emt 0:00:35]} Ra1 {[%emt 0:00:00]} 52. Nc5 {[%emt 0:00:14]} Ra3 {[%emt 0:00:00]} 53. Ke2 {[%emt 0:00:21]} Ke7 {[%emt 0:00:00]} 54. Kd2 {[%emt 0:00:30]} Kd8 {[%emt 0:00:00]} 55. Nb7+ {[%emt 0:01:16]} Kc7 {[%emt 0:00:00]} 56. Nxa5 {[%emt 0:00:03]} Rxa4 {[%emt 0:00:00]} 57. Nb3 {[%emt 0:00:02]} Kc6 {[%emt 0:00:00]} 58. Kc3 {[%emt 0:01:57]} Kd5 {[%emt 0:00:00]} 59. Kc2 {[%emt 0:00:37]} Ra3 {[%emt 0:00:00]} 60. Kc3 {[%emt 0:00:07]} Rxb3+ {[%emt 0:00:00]} 61. Kxb3 {[%emt 0:00:03]} Kxd4 {[%emt 0:00:00]} 62. Kc2 {[%emt 0:00:13]} Kxe5 {[%emt 0:22:30]} 63. Kd2 {[%emt 0:00:30]} Kf4 {[%emt 0:00:00]} 64. Ke2 {[%emt 0:00:35]} Kg3 {[%emt 0:00:00]} 65. Kf1 {[%emt 0:00:05]} Kf3 {[%emt 0:00:00]} 66. Ke1 {[%emt 0:00:12]} f5 {[%emt 0:00:00]} 67. Kf1 {[%emt 0:00:03]} f4 {[%emt 0:02:30]} 0-1

[Event "GM ZIA Smirity-B 2025"]
[Site "Dhaka"]
[Date "2025.02.18"]
[Round "4.4"]
[White "Rubel, Hossen"]
[Black "Mukitul, Islam Ripon"]
[Result "1-0"]
[Annotator "NA"]
[ECO "D02"]
[WhiteElo "1921"]
[BlackElo "1888"]
[PlyCount "87"]
[EventDate "2025.02.17"]
[EventType "swiss"]
[EventCountry "BAN"]
[SourceTitle "playchess.com"]
[Source "ChessBase"]
[SourceQuality "1"]
[TimeControl "5400+30"]

1. d4 {[%emt 0:00:05]} d5 {[%emt 0:00:23]} 2. Nf3 {[%emt 0:00:20]} Bf5 {[%emt 0:01:34]} 3. Bf4 {[%emt 0:00:04]} e6 {[%emt 0:00:20]} 4. e3 {[%emt 0:00:05]} Bd6 {[%emt 0:00:44]} 5. Bg3 {[%emt 0:00:18]} Nf6 {[%emt 0:00:18]} 6. Bd3 {[%emt 0:00:15]} O-O {[%emt 0:00:59]} 7. Nbd2 {[%emt 0:00:49]} c5 {[%emt 0:00:50]} 8. Ne5 {[%emt 0:01:34]} Bxd3 {[%emt 0:00:58]} 9. Nxd3 {[%emt 0:00:54]} Bxg3 {[%emt 0:00:35]} 10. hxg3 {[%emt 0:00:12]} cxd4 {[%emt 0:00:18]} 11. exd4 {[%emt 0:00:44]} Nc6 {[%emt 0:00:09]} 12. c3 {[%emt 0:00:45]} Qd6 {[%emt 0:00:51]} 13. f4 {[%emt 0:01:21]} Na5 {[%emt 0:03:37]} 14. Ne5 {[%emt 0:00:40]} Rac8 {[%emt 0:00:41]} 15. g4 {[%emt 0:01:36]} Ne4 {[%emt 0:01:13]} 16. Nxe4 {[%emt 0:00:17]} dxe4 {[%emt 0:00:09]} 17. g5 {[%emt 0:01:05]} g6 {[%emt 0:00:39]} 18. Qg4 {[%emt 0:00:51]} Kg7 {[%emt 0:01:36]} 19. Qh4 {[%emt 0:00:58]} Rh8 {[%emt 0:00:13]} 20. Qh6+ {[%emt 0:00:13]} Kg8 {[%emt 0:00:12]} 21. Ng4 {[%emt 0:00:13]} f5 {[%emt 0:01:24]} 22. gxf6 {[%emt 0:03:25]} Rc7 {[%emt 0:00:32]} 23. Ne5 {[%emt 0:00:09]} Qf8 {[%emt 0:07:57]} 24. Qxf8+ {[%emt 0:00:33]} Kxf8 {[%emt 0:00:01]} 25. Nxg6+ {[%emt 0:00:15]} Kf7 {[%emt 0:00:54]} 26. Nxh8+ {[%emt 0:00:03]} Kxf6 {[%emt 0:00:01]} 27. O-O-O {[%emt 0:01:07]} e3 {[%emt 0:02:58]} 28. Rh6+ {[%emt 0:00:16]} Kg7 {[%emt 0:06:14]} 29. Rxe6 {[%emt 0:00:06]} Kxh8 {[%emt 0:01:46]} 30. Rxe3 {[%emt 0:00:03]} Kg7 {[%emt 0:01:08]} 31. g4 {[%emt 0:00:04]} b5 {[%emt 0:00:35]} 32. Rde1 {[%emt 0:00:33]} Kf7 {[%emt 0:00:11]} 33. a3 {[%emt 0:00:13]} Nc4 {[%emt 0:01:08]} 34. Re6 {[%emt 0:00:28]} a5 {[%emt 0:00:25]} 35. f5 {[%emt 0:00:08]} b4 {[%emt 0:00:11]} 36. Rh1 {[%emt 0:00:50]} Kf8 {[%emt 0:01:23]} 37. d5 {[%emt 0:00:12]} bxa3 {[%emt 0:00:32]} 38. bxa3 {[%emt 0:00:09]} Nxa3 {[%emt 0:00:37]} 39. Rc6 {[%emt 0:00:07]} Rb7 {[%emt 0:00:45]} 40. Rhh6 {[%emt 0:01:19]} Rb1+ {[%emt 0:05:19]} 41. Kd2 {[%emt 0:00:04]} Kg7 {[%emt 0:00:21]} 42. g5 {[%emt 0:00:08]} Rg1 {[%emt 0:11:09]} 43. f6+ {[%emt 0:00:25]} Kf8 {[%emt 0:02:00]} 44. Rxh7 {[%emt 0:00:24]} 1-0

[Event "GM ZIA Smirity-B 2025"]
[Site "Dhaka"]
[Date "2025.02.19"]
[Round "5.1"]
[White "Zoar Haque, Prodhan"]
[Black "Hasan, Sk. Rashedul"]
[Result "1-0"]
[Annotator "NA"]
[ECO "A48"]
[WhiteElo "1947"]
[BlackElo "1918"]
[PlyCount "87"]
[EventDate "2025.02.17"]
[EventType "swiss"]
[EventCountry "BAN"]
[SourceTitle "playchess.com"]
[Source "ChessBase"]
[SourceQuality "1"]
[TimeControl "5400+30"]

1. d4 {[%emt 0:00:05]} Nf6 {[%emt 0:28:19]} 2. Bf4 {[%emt 0:00:08]} d6 {[%emt 0:00:41]} 3. Nf3 {[%emt 0:00:53]} g6 {[%emt 0:00:13]} 4. Nbd2 {[%emt 0:00:18]} Bg7 {[%emt 0:00:13]} 5. e4 {[%emt 0:00:25]} O-O {[%emt 0:00:32]} 6. h3 {[%emt 0:00:44]} c5 {[%emt 0:00:36]} 7. d5 {[%emt 0:00:38]} Nh5 {[%emt 0:00:19]} 8. Bh2 {[%emt 0:00:37]} Bxb2 {[%emt 0:00:05]} 9. Rb1 {[%emt 0:00:33]} Bg7 {[%emt 0:00:18]} 10. Bd3 {[%emt 0:01:25]} a6 {[%emt 0:05:50]} 11. O-O {[%emt 0:00:27]} b5 {[%emt 0:00:11]} 12. c4 {[%emt 0:00:20]} b4 {[%emt 0:00:11]} 13. e5 {[%emt 0:01:05]} dxe5 {[%emt 0:04:08]} 14. Nxe5 {[%emt 0:00:45]} Bb7 {[%emt 0:00:05]} 15. Qe2 {[%emt 0:04:17]} a5 {[%emt 0:05:41]} 16. Bc2 {[%emt 0:01:36]} a4 {[%emt 0:00:44]} 17. Ne4 {[%emt 0:03:42]} Qb6 {[%emt 0:02:37]} 18. Qe3 {[%emt 0:09:25]} Ra5 {[%emt 0:01:24]} 19. Nc3 {[%emt 0:00:20]} a3 {[%emt 0:24:48]} 20. Nb5 {[%emt 0:00:06]} Bxd5 {[%emt 0:00:37]} 21. Rxb4 {[%emt 0:00:23]} Bh6 {[%emt 0:02:05]} 22. Qxh6 {[%emt 0:01:30]} cxb4 {[%emt 0:00:07]} 23. cxd5 {[%emt 0:00:47]} Rxb5 {[%emt 0:00:41]} 24. Bb3 {[%emt 0:02:29]} Nf6 {[%emt 0:02:21]} 25. Rd1 {[%emt 0:02:50]} Qb7 {[%emt 0:02:58]} 26. d6 {[%emt 0:00:54]} e6 {[%emt 0:03:39]} 27. Nf3 {[%emt 0:00:43]} Rh5 {[%emt 0:01:07]} 28. Qe3 {[%emt 0:01:04]} Nbd7 {[%emt 0:00:24]} 29. Ng5 {[%emt 0:01:28]} Nd5 {[%emt 0:01:09]} 30. Qd2 {[%emt 0:01:00]} h6 {[%emt 0:02:41]} 31. Ne4 {[%emt 0:00:04]} f5 {[%emt 0:02:22]} 32. Ng3 {[%emt 0:00:21]} Rg5 {[%emt 0:00:14]} 33. h4 {[%emt 0:03:43]} Rg4 {[%emt 0:00:03]} 34. Qxh6 {[%emt 0:00:13]} f4 {[%emt 0:03:07]} 35. Ne4 {[%emt 0:00:12]} N7f6 {[%emt 0:00:52]} 36. Ng5 {[%emt 0:00:12]} Rxg2+ {[%emt 0:01:04]} 37. Kf1 {[%emt 0:02:47]} Rxf2+ {[%emt 0:00:47]} 38. Ke1 {[%emt 0:00:24]} Rf1+ {[%emt 0:02:28]} 39. Kxf1 {[%emt 0:00:14]} Ne3+ {[%emt 0:04:19]} 40. Ke2 {[%emt 0:00:01]} f3+ {[%emt 0:00:00]} 41. Kd2 {[%emt 0:00:19]} Ne4+ {[%emt 0:01:00]} 42. Kxe3 {[%emt 0:00:57]} Nxg5 {[%emt 0:00:00]} 43. Qxg6+ {[%emt 0:00:03]} Kh8 {[%emt 0:00:00]} 44. Be5+ {[%emt 1:02:03]} 1-0

[Event "GM ZIA Smirity-B 2025"]
[Site "Dhaka"]
[Date "2025.02.19"]
[Round "5.2"]
[White "Siam, Chowdhury"]
[Black "Rubel, Hossen"]
[Result "1-0"]
[Annotator "NA"]
[ECO "B01"]
[WhiteElo "1888"]
[BlackElo "1921"]
[PlyCount "86"]
[EventDate "2025.02.17"]
[EventType "swiss"]
[EventCountry "BAN"]
[SourceTitle "playchess.com"]
[Source "ChessBase"]
[SourceQuality "1"]
[TimeControl "5400+30"]

1. e4 {[%emt 0:00:06]} d5 {[%emt 0:00:14]} 2. exd5 {[%emt 0:00:03]} Qxd5 {[%emt 0:00:09]} 3. Nc3 {[%emt 0:00:04]} Qa5 {[%emt 0:00:09]} 4. d4 {[%emt 0:00:02]} c6 {[%emt 0:00:25]} 5. Nf3 {[%emt 0:00:05]} Nf6 {[%emt 0:00:12]} 6. Bc4 {[%emt 0:00:08]} Bf5 {[%emt 0:00:36]} 7. Bd2 {[%emt 0:00:09]} Qc7 {[%emt 0:01:33]} 8. Ne5 {[%emt 0:02:29]} e6 {[%emt 0:00:09]} 9. g4 {[%emt 0:01:49]} Bg6 {[%emt 0:00:08]} 10. Qe2 {[%emt 0:04:41]} Nbd7 {[%emt 0:02:19]} 11. h4 {[%emt 0:04:41]} Nxe5 {[%emt 0:01:30]} 12. dxe5 {[%emt 0:01:05]} Nd7 {[%emt 0:00:38]} 13. h5 {[%emt 0:01:29]} Bxc2 {[%emt 0:00:40]} 14. Rc1 {[%emt 0:00:29]} b5 {[%emt 0:01:43]} 15. Rxc2 {[%emt 0:51:04]} bxc4 {[%emt 0:00:03]} 16. f4 {[%emt 0:00:01]} Nb6 {[%emt 0:02:42]} 17. Ne4 {[%emt 0:01:37]} Be7 {[%emt 0:01:22]} 18. Be3 {[%emt 0:09:39]} Rd8 {[%emt 0:06:00]} 19. O-O {[%emt 0:02:56]} O-O {[%emt 0:03:32]} 20. Nd2 {[%emt 0:07:07]} c3 {[%emt 0:10:48]} 21. bxc3 {[%emt 0:00:49]} f6 {[%emt 0:00:07]} 22. Nf3 {[%emt 0:00:51]} Nd5 {[%emt 0:00:44]} 23. c4 {[%emt 0:01:43]} Nxe3 {[%emt 0:00:32]} 24. Qxe3 {[%emt 0:00:05]} Qa5 {[%emt 0:01:15]} 25. Kg2 {[%emt 0:01:50]} Bc5 {[%emt 0:01:07]} 26. Qe4 {[%emt 0:02:49]} fxe5 {[%emt 0:22:26]} 27. Ng5 {[%emt 0:02:08]} Rd2+ {[%emt 0:01:25]} 28. Rxd2 {[%emt 0:00:16]} Qxd2+ {[%emt 0:00:14]} 29. Kh1 {[%emt 0:00:02]} g6 {[%emt 0:03:26]} 30. Nxe6 {[%emt 0:03:59]} Qc3 {[%emt 0:02:01]} 31. Qf3 {[%emt 0:01:09]} Qxf3+ {[%emt 0:17:43]} 32. Rxf3 {[%emt 0:00:01]} Rf6 {[%emt 0:02:21]} 33. Nxc5 {[%emt 0:00:05]} exf4 {[%emt 0:00:23]} 34. hxg6 {[%emt 0:00:01]} hxg6 {[%emt 0:00:42]} 35. Kg2 {[%emt 0:00:11]} g5 {[%emt 0:00:28]} 36. Ne4 {[%emt 0:00:07]} Rg6 {[%emt 0:00:45]} 37. Ra3 {[%emt 0:00:02]} Kf7 {[%emt 0:00:59]} 38. Rxa7+ {[%emt 0:03:38]} Ke6 {[%emt 0:00:10]} 39. Ra5 {[%emt 0:00:00]} Rg8 {[%emt 0:00:31]} 40. Nxg5+ {[%emt 0:00:00]} Kd6 {[%emt 0:00:44]} 41. Kf3 {[%emt 0:00:00]} c5 {[%emt 0:00:08]} 42. Ne4+ {[%emt 0:00:00]} Kc6 {[%emt 0:00:02]} 43. Rxc5+ {[%emt 0:00:00]} Kb6 {[%emt 0:00:01]} 1-0

[Event "GM ZIA Smirity-B 2025"]
[Site "Dhaka"]
[Date "2025.02.19"]
[Round "5.3"]
[White "Abdul, Momin"]
[Black "Islam, Sheik   Khairul"]
[Result "1-0"]
[Annotator "NA"]
[ECO "B28"]
[WhiteElo "1906"]
[BlackElo "1841"]
[PlyCount "59"]
[EventDate "2025.02.17"]
[EventType "swiss"]
[EventCountry "BAN"]
[SourceTitle "playchess.com"]
[Source "ChessBase"]
[SourceQuality "1"]
[TimeControl "5400+30"]

1. e4 {[%emt 0:25:38]} e6 {[%emt 0:00:28]} 2. d4 {[%emt 0:00:47]} d5 {[%emt 1:31:02]} 3. e5 {[%emt 0:00:23]} a6 {[%emt 0:00:00]} 4. c3 {[%emt 0:00:14]} c5 {[%emt 0:00:00]} 5. Nf3 {[%emt 0:00:07]} Nc6 {[%emt 0:00:00]} 6. Be2 {[%emt 0:00:15]} Nge7 {[%emt 0:00:00]} 7. Na3 {[%emt 0:00:11]} Ng6 {[%emt 0:00:00]} 8. Nc2 {[%emt 0:00:08]} Be7 {[%emt 0:00:00]} 9. g3 {[%emt 0:01:41]} Bd7 {[%emt 0:00:00]} 10. h4 {[%emt 0:00:05]} h6 {[%emt 0:00:00]} 11. h5 {[%emt 0:00:17]} Nf8 {[%emt 0:00:00]} 12. Be3 {[%emt 0:01:14]} Qc7 {[%emt 0:00:00]} 13. Qc1 {[%emt 0:05:52]} Rc8 {[%emt 0:00:00]} 14. Bd3 {[%emt 0:09:24]} cxd4 {[%emt 0:00:00]} 15. cxd4 {[%emt 0:02:11]} Nb4 {[%emt 0:06:30]} 16. Nxb4 {[%emt 0:00:14]} Bxb4+ {[%emt 0:00:00]} 17. Ke2 {[%emt 0:03:01]} Qb6 {[%emt 0:00:00]} 18. Qb1 {[%emt 0:00:29]} Bb5 {[%emt 0:00:00]} 19. Rc1 {[%emt 0:01:42]} Rxc1 {[%emt 0:00:00]} 20. Bxc1 {[%emt 0:00:12]} Nd7 {[%emt 0:00:00]} 21. a4 {[%emt 0:01:00]} Bxd3+ {[%emt 0:00:00]} 22. Qxd3 {[%emt 0:00:04]} f5 {[%emt 0:00:00]} 23. exf6 {[%emt 0:00:42]} Nxf6 {[%emt 0:00:00]} 24. Qg6+ {[%emt 0:00:24]} Kf8 {[%emt 0:00:00]} 25. Ne5 {[%emt 0:01:36]} Qc7 {[%emt 0:00:00]} 26. Be3 {[%emt 0:00:37]} Bd6 {[%emt 0:00:00]} 27. Rc1 {[%emt 0:00:35]} Qe7 {[%emt 0:00:00]} 28. Rc8+ {[%emt 0:02:38]} Ne8 {[%emt 0:00:00]} 29. Bf4 {[%emt 0:00:39]} Rg8 {[%emt 0:00:00]} 30. Nd7+ {[%emt 0:00:49]} 1-0

[Event "GM ZIA Smirity-B 2025"]
[Site "Dhaka"]
[Date "2025.02.19"]
[Round "5.4"]
[White "Md, Mesbah Uddin"]
[Black "Md Zia Uddin"]
[Result "1/2-1/2"]
[Annotator "NA"]
[ECO "D02"]
[WhiteElo "1834"]
[BlackElo "1722"]
[PlyCount "66"]
[EventDate "2025.02.17"]
[EventType "swiss"]
[EventCountry "BAN"]
[SourceTitle "playchess.com"]
[Source "ChessBase"]
[SourceQuality "1"]
[TimeControl "5400+30"]

1. d4 {[%emt 0:03:07]} Nf6 {[%emt 0:00:28]} 2. Bf4 {[%emt 0:00:15]} e6 {[%emt 0:00:43]} 3. e3 {[%emt 0:02:13]} d5 {[%emt 0:00:07]} 4. Nf3 {[%emt 0:00:22]} c5 {[%emt 0:00:27]} 5. c3 {[%emt 0:00:12]} Nc6 {[%emt 0:01:33]} 6. Bd3 {[%emt 0:00:57]} Bd6 {[%emt 0:00:39]} 7. Ne5 {[%emt 0:02:31]} O-O {[%emt 0:08:03]} 8. Nd2 {[%emt 0:00:56]} cxd4 {[%emt 0:04:12]} 9. exd4 {[%emt 0:00:15]} Qc7 {[%emt 0:01:47]} 10. Ndf3 {[%emt 0:00:55]} h6 {[%emt 0:02:06]} 11. Qd2 {[%emt 0:02:58]} Ne4 {[%emt 0:02:21]} 12. Qe3 {[%emt 0:03:52]} f6 {[%emt 0:03:03]} 13. Ng6 {[%emt 0:00:35]} Bxf4 {[%emt 0:00:27]} 14. Nxf4 {[%emt 0:00:51]} f5 {[%emt 0:01:20]} 15. Ng6 {[%emt 0:00:24]} Rf6 {[%emt 0:04:01]} 16. Nge5 {[%emt 0:00:19]} Nxe5 {[%emt 0:03:06]} 17. Nxe5 {[%emt 0:00:10]} Nd6 {[%emt 0:05:09]} 18. f4 {[%emt 0:03:06]} Nf7 {[%emt 0:02:35]} 19. h3 {[%emt 0:01:30]} Nxe5 {[%emt 0:00:58]} 20. fxe5 {[%emt 0:00:03]} Rf7 {[%emt 0:03:10]} 21. O-O-O {[%emt 0:01:50]} Bd7 {[%emt 0:01:03]} 22. g4 {[%emt 0:01:34]} f4 {[%emt 0:02:19]} 23. Qe2 {[%emt 0:01:22]} Qa5 {[%emt 0:00:36]} 24. Bb1 {[%emt 0:00:49]} Rc8 {[%emt 0:09:22]} 25. g5 {[%emt 0:01:53]} hxg5 {[%emt 0:09:42]} 26. Rhg1 {[%emt 0:01:14]} Bb5 {[%emt 0:13:26]} 27. Qh5 {[%emt 0:00:14]} Rxc3+ {[%emt 0:01:05]} 28. bxc3 {[%emt 0:00:18]} Qxc3+ {[%emt 0:00:12]} 29. Bc2 {[%emt 0:00:09]} Qa1+ {[%emt 0:01:39]} 30. Kd2 {[%emt 0:00:01]} Qxd4+ {[%emt 0:00:21]} 31. Kc1 {[%emt 0:00:15]} Qa1+ {[%emt 0:00:38]} 32. Kd2 {[%emt 0:00:02]} Qd4+ {[%emt 0:00:13]} 33. Kc1 {[%emt 0:00:41]} Rf5 {[%emt 0:20:09]} 1/2-1/2

[Event "GM ZIA Smirity-B 2025"]
[Site "Dhaka"]
[Date "2025.02.20"]
[Round "6.1"]
[White "Siam, Chowdhury"]
[Black "Abdul, Momin"]
[Result "1/2-1/2"]
[Annotator "RC"]
[ECO "B23"]
[WhiteElo "1888"]
[BlackElo "1906"]
[PlyCount "160"]
[EventDate "2025.02.17"]
[EventType "swiss"]
[EventCountry "BAN"]
[SourceTitle "playchess.com"]
[Source "ChessBase"]
[SourceQuality "1"]
[TimeControl "5400+30"]

1. e4 {[%emt 0:02:36]} c5 {[%emt 0:16:31]} 2. Nc3 {[%emt 0:01:01]} d6 {[%emt 0:00:02]} 3. g3 {[%emt 0:00:07]} e6 {[%emt 0:01:15]} 4. Bg2 {[%emt 0:00:02]} a6 {[%emt 0:00:13]} 5. d3 {[%emt 0:00:28]} Nd7 {[%emt 0:00:16]} 6. Be3 {[%emt 0:00:39]} Ngf6 {[%emt 0:00:09]} 7. h3 {[%emt 0:00:10]} Rb8 {[%emt 0:00:11]} 8. f4 {[%emt 0:01:04]} b5 {[%emt 0:00:58]} 9. a3 {[%emt 0:02:35]} Qc7 {[%emt 0:01:01]} 10. Nf3 {[%emt 0:05:56]} Bb7 {[%emt 0:01:17]} 11. O-O {[%emt 0:00:44]} g6 {[%emt 0:01:03]} 12. Ne2 {[%emt 0:02:34]} d5 {[%emt 0:02:02]} 13. exd5 {[%emt 0:24:10]} Nxd5 {[%emt 0:00:25]} 14. Bf2 {[%emt 0:00:02]} Bg7 {[%emt 0:00:20]} 15. d4 {[%emt 0:05:18]} O-O {[%emt 0:01:05]} 16. c3 {[%emt 0:01:10]} c4 {[%emt 0:02:22]} 17. Ne5 {[%emt 0:08:32]} N7b6 {[%emt 1:09:50]} 18. Qc1 {[%emt 0:12:27]} Rbd8 {[%emt 0:00:00]} 19. g4 {[%emt 0:02:24]} Bh6 {[%emt 0:00:00]} 20. Bg3 {[%emt 0:07:14]} Qc8 {[%emt 0:00:00]} 21. Bh4 {[%emt 0:06:12]} Rde8 {[%emt 0:00:00]} 22. g5 {[%emt 0:03:57]} Bg7 {[%emt 0:00:00]} 23. Ng3 {[%emt 0:00:19]} Ne7 {[%emt 0:00:00]} 24. Ne4 {[%emt 0:00:42]} Nf5 {[%emt 0:00:00]} 25. Bf2 {[%emt 0:01:12]} Qa8 {[%emt 0:00:00]} 26. Re1 {[%emt 0:02:53]} Rd8 {[%emt 0:00:00]} 27. Qc2 {[%emt 0:01:29]} Nd5 {[%emt 0:00:00]} 28. Qd2 {[%emt 0:01:15]} h5 {[%emt 0:00:00]} 29. Nc5 {[%emt 0:01:23]} a5 {[%emt 0:00:00]} 30. a4 {[%emt 0:01:05]} b4 {[%emt 0:00:00]} 31. Nxc4 {[%emt 0:00:15]} Bc6 {[%emt 0:00:00]} 32. Ne5 {[%emt 0:01:17]} Bxe5 {[%emt 0:00:00]} 33. fxe5 {[%emt 0:00:59]} bxc3 {[%emt 0:00:00]} 34. bxc3 {[%emt 0:00:01]} Rb8 {[%emt 0:00:00]} 35. Rab1 {[%emt 0:01:54]} Nb6 {[%emt 0:00:00]} 36. Bxc6 {[%emt 0:00:16]} Qxc6 {[%emt 0:00:00]} 37. Qc2 {[%emt 0:01:27]} Qf3 {[%emt 0:00:00]} 38. Qd3 {[%emt 0:00:20]} Qxd3 {[%emt 0:00:00]} 39. Nxd3 {[%emt 0:00:01]} Nxa4 {[%emt 0:00:00]} 40. c4 {[%emt 0:02:10]} Rxb1 {[%emt 0:00:00]} 41. Rxb1 {[%emt 0:00:01]} Nc3 {[%emt 0:00:00]} 42. Ra1 {[%emt 0:00:40]} Ra8 {[%emt 0:00:00]} 43. Kf1 {[%emt 0:00:24]} a4 {[%emt 0:00:00]} 44. Ra3 {[%emt 0:00:46]} Ne4 {[%emt 0:00:00]} 45. Nb2 {[%emt 0:00:10]} Rb8 {[%emt 0:00:00]} 46. Nxa4 {[%emt 0:00:14]} Nd2+ {[%emt 0:00:00]} 47. Ke2 {[%emt 0:00:06]} Nxc4 {[%emt 0:00:00]} 48. Rc3 {[%emt 0:00:12]} Rb4 {[%emt 0:00:00]} 49. Nc5 {[%emt 0:00:07]} Rb2+ {[%emt 0:00:00]} 50. Ke1 {[%emt 0:01:06]} Nb6 {[%emt 0:00:00]} 51. Rb3 {[%emt 0:00:45]} Rxb3 {[%emt 0:00:00]} 52. Nxb3 {[%emt 0:00:01]} Nd5 {[%emt 0:00:00]} 53. Nd2 {[%emt 0:00:45]} Nf4 {[%emt 0:00:00]} 54. h4 {[%emt 0:00:50]} Nd3+ {[%emt 0:00:00]} 55. Ke2 {[%emt 0:00:01]} Nxf2 {[%emt 0:00:00]} 56. Kxf2 {[%emt 0:00:03]} Nxh4 {[%emt 0:00:00]} 57. Ke3 {[%emt 0:01:14]} Nf5+ {[%emt 0:00:00]} 58. Ke4 {[%emt 0:00:03]} Kf8 {[%emt 0:00:00]} 59. Nf3 {[%emt 0:02:14]} Ng3+ {[%emt 0:00:00]} 60. Kf4 {[%emt 0:00:09]} Ne2+ {[%emt 0:00:00]} 61. Ke3 {[%emt 0:00:19]} Nc3 {[%emt 0:00:00]} 62. Kd3 {[%emt 0:00:40]} Nd5 {[%emt 0:00:00]} 63. Ke4 {[%emt 0:00:02]} Ke7 {[%emt 0:00:00]} 64. Nd2 {[%emt 0:00:23]} Nb6 {[%emt 0:23:30]} 65. Nf3 {[%emt 0:01:33]} Kd7 {[%emt 0:00:00]} 66. Kd3 {[%emt 0:01:21]} Kc6 {[%emt 0:00:00]} 67. Ne1 {[%emt 0:00:45]} Nd5 {[%emt 0:00:00]} 68. Nf3 {[%emt 0:00:13]} Ne7 {[%emt 0:00:00]} 69. Kc4 {[%emt 0:00:51]} Nf5 {[%emt 0:00:00]} 70. Ng1 {[%emt 0:00:04]} h4 {[%emt 0:00:00]} 71. Nh3 {[%emt 0:00:07]} Ng3 {[%emt 0:00:00]} 72. Nf4 {[%emt 0:00:37]} Ne4 {[%emt 0:00:00]} 73. Nh3 {[%emt 0:00:07]} Ng3 {[%emt 0:00:00]} 74. Nf4 {[%emt 0:00:10]} Nf5 {[%emt 0:00:00]} 75. Nh3 {[%emt 0:00:18]} Ne7 {[%emt 0:00:00]} 76. Nf4 {[%emt 0:00:29]} Nd5 {[%emt 0:00:00]} 77. Nh3 {[%emt 0:00:01]} Kb6 {[%emt 0:00:00]} 78. Kd3 {[%emt 0:02:03]} Kb5 {[%emt 0:00:00]} 79. Ke4 {[%emt 0:00:07]} Kc4 {[%emt 0:00:00]} 80. Ng1 {[%emt 0:00:02]} h3 {[%emt 0:00:00]} 1/2-1/2